[Event "44th Chess Olympiad Women 2022"]
[Site "Chennai"]
[Date "2022.08.06"]
[Round "8.5"]
[White "Mrvova, Alena"]
[Black "Nakhbayeva, Guliskhan"]
[Result "0-1"]
[WhiteElo "2165"]
[BlackElo "2329"]
[Annotator "RC"]
[PlyCount "102"]
[EventDate "2022.??.??"]
[TimeControl "60"]

1. e4 {[%emt 0:00:29]} c5 {[%emt 0:00:12]} 2. Nf3 {[%emt 0:00:30]} e6 {[%emt 0:
00:00]} 3. d3 {[%emt 0:00:55]} d5 {[%emt 0:01:57]} 4. Nbd2 {[%emt 0:00:28]} Nc6
{[%emt 0:00:09]} 5. g3 {[%emt 0:00:25]} g6 {[%emt 0:00:33]} 6. Bg2 {[%emt 0:00:
00]} Bg7 {[%emt 0:00:07]} 7. O-O {[%emt 0:01:00]} Nge7 {[%emt 0:00:13]} 8. Re1
{[%emt 0:01:13]} O-O {[%emt 0:03:03]} 9. c3 {[%emt 0:02:03]} e5 {[%emt 0:04:27]
} 10. exd5 {[%emt 0:03:44]} Nxd5 {[%emt 0:00:09]} 11. Nc4 {[%emt 0:00:11]} Re8
{[%emt 0:07:56]} 12. Ng5 {[%emt 0:05:24]} Rf8 {[%emt 0:21:02]} 13. Ne4 {
[%emt 0:03:29]} Qe7 {[%emt 0:01:40]} 14. Ned6 {[%emt 0:21:02]} Be6 {[%emt 0:00:
00]} 15. f4 {[%emt 0:00:09]} Rad8 {[%emt 0:05:50]} 16. fxe5 {[%emt 0:00:43]}
Nxe5 {[%emt 0:00:42]} 17. Nxb7 {[%emt 0:00:50]} Qxb7 {[%emt 0:16:06]} 18. Nxe5
{[%emt 0:00:11]} Qc7 {[%emt 0:00:13]} 19. Ng4 {[%emt 0:04:25]} h5 {[%emt 0:00:
00]} 20. Nf2 {[%emt 0:00:51]} h4 {[%emt 0:10:29]} 21. Qf3 {[%emt 0:02:04]} hxg3
{[%emt 0:02:36]} 22. hxg3 {[%emt 0:00:21]} Be5 {[%emt 0:02:38]} 23. Ne4 {
[%emt 0:09:02]} f5 {[%emt 0:03:45]} 24. Ng5 {[%emt 0:00:20]} Bc8 {[%emt 0:00:
00]} 25. Bd2 {[%emt 0:04:23]} Bxg3 {[%emt 0:02:37]} 26. Ne6 {[%emt 0:00:14]}
Bxe6 {[%emt 0:00:08]} 27. Rxe6 {[%emt 0:00:05]} Kf7 {[%emt 0:00:39]} 28. Ra6 {
[%emt 0:02:34]} Rfe8 {[%emt 0:04:54]} 29. Bg5 {[%emt 0:03:04]} Rd7 {[%emt 0:00:
00]} 30. Bh3 {[%emt 0:02:26]} Bh2+ {[%emt 0:01:57]} 31. Kf2 {[%emt 0:01:14]}
Bf4 {[%emt 0:00:17]} 32. Bxf5 {[%emt 0:03:00]} Re3 {[%emt 0:06:02]} 33. Rf6+ {
[%emt 0:11:15]} Nxf6 {[%emt 0:01:17]} 34. Qxf4 {[%emt 0:00:10]} gxf5 {[%emt 0:
00:00]} 35. Qxc7 {[%emt 0:03:06]} Ng4+ {[%emt 0:00:01]} 36. Kf1 {[%emt 0:00:27]
} Rxc7 {[%emt 0:00:02]} 37. Bxe3 {[%emt 0:00:06]} Nxe3+ {[%emt 0:00:02]} 38.
Ke2 {[%emt 0:00:11]} Ng4 {[%emt 0:00:34]} 39. Rd1 {[%emt 0:02:55]} Kf6 {
[%emt 0:01:17]} 40. d4 {[%emt 0:00:50]} Re7+ {[%emt 0:00:47]} 41. Kf3 {[%emt 0:
00:00]} Re3+ {[%emt 0:30:54]} 42. Kf4 {[%emt 0:01:02]} Re4+ {[%emt 0:00:00]}
43. Kf3 {[%emt 0:00:00]} cxd4 {[%emt 0:00:00]} 44. cxd4 {[%emt 0:00:00]} Re3+ {
[%emt 0:00:00]} 45. Kf4 {[%emt 0:00:00]} Re2 {[%emt 0:00:00]} 46. Rd3 {[%emt 0:
00:00]} Rxb2 {[%emt 0:00:00]} 47. Ra3 {[%emt 0:00:00]} Rf2+ {[%emt 0:00:00]}
48. Kg3 {[%emt 0:00:00]} Kg5 {[%emt 0:00:00]} 49. Ra5 {[%emt 0:00:00]} Rd2 {
[%emt 0:00:00]} 50. d5 {[%emt 0:00:00]} f4+ {[%emt 0:00:00]} 51. Kf3 {[%emt 0:
00:00]} Kf5 {[%emt 0:00:00]} 0-1

[Event "44th Chess Olympiad Women 2022"]
[Site "Chennai"]
[Date "2022.08.06"]
[Round "8.5"]
[White "Repkova, Eva"]
[Black "Assaubayeva, Bibisara"]
[Result "0-1"]
[WhiteElo "2303"]
[BlackElo "2436"]
[Annotator "TA"]
[PlyCount "60"]
[EventDate "2022.??.??"]
[TimeControl "60"]

{[%evp 15,60,15,16,5,14,13,20,14,23,21,11,-19,-22,-25,-18,-43,-36,-79,-66,-85,
-73,-123,-117,-198,-165,-323,-241,-242,-243,-299,-283,-524,-511,-710,-708,-748,
-729,-756,-749,-1507,-1470,-29991,-29992,-29994,-29995,-29995,-29996]} 1. e4 {
[%emt 0:00:13]} c5 {[%emt 0:00:12]} 2. Nf3 {[%emt 0:00:04]} d6 {[%emt 0:00:05]}
3. d4 {[%emt 0:00:04]} cxd4 {[%emt 0:00:05]} 4. Nxd4 {[%emt 0:00:04]} Nf6 {
[%emt 0:00:05]} 5. Nc3 {[%emt 0:00:11]} a6 {[%emt 0:00:06]} 6. Be2 {[%emt 0:00:
00]} e5 {[%emt 0:00:43]} 7. Nf3 {[%emt 0:00:11]} h6 {[%emt 0:03:09]} 8. O-O {
[%emt 0:02:40]} Be6 {[%emt 0:01:15]} 9. Be3 {[%emt 0:00:32] B92: Sicilian
Najdorf: 6 Be2.} Nbd7 {[%emt 0:00:57]} 10. a4 {[%emt 0:00:26]} Rc8 {[%emt 0:00:
00][%cal Yc8c3]} 11. Nd2 {[%emt 0:13:45] The position is equal.} Be7 {[%emt 0:
00:00]} 12. Re1 {[%emt 0:04:40]} O-O {[%emt 0:02:15] [#]} 13. Nf1 $146 {
[%emt 0:01:44] [#]} ({Predecessor:} 13. Bf3 Nh7 14. a5 Ng5 15. Bg4 Bxg4 16.
Qxg4 Nf6 17. Qe2 Re8 18. Bxg5 hxg5 19. Nc4 {1-0 (40) Basson,H (1750)-Ficken,N 
(1724) IECG email 2006}) 13... Rxc3 $1 {[%emt 0:11:58]} 14. bxc3 {[%emt 0:00:
00]} Nxe4 {[%emt 0:01:07]} 15. Bf3 {[%emt 0:01:21]} d5 {[%emt 0:01:59][%cal
Yd6d5,Yd5e4]} 16. Bxe4 {[%emt 0:04:14]} dxe4 {[%emt 0:01:17]} 17. Qh5 {[%emt 0:
01:33]} Kh7 {[%emt 0:05:21]} 18. a5 {[%emt 0:14:05]} (18. Bc1 $142) 18... f5 {
[%emt 0:03:09][%cal Yf7f5,Yf5f4]} 19. Ra4 {[%emt 0:01:12]} (19. Bc1 $17) 19...
Qc7 {[%emt 0:03:05]} 20. Rb1 $2 {[%emt 0:05:36]} (20. Qe2) 20... Qxc3 {[%emt 0:
05:10]} 21. Qd1 {[%emt 0:04:56]} Qc6 {[%emt 0:03:58]} 22. c3 {[%emt 0:00:33]}
Rf6 {[%emt 0:05:22][%cal Yf8f6,Yf6g6,Yg6g5]} 23. h4 $2 {[%emt 0:09:25]} (23.
Ba7 {keeps fighting.}) 23... f4 $19 {[%emt 0:02:27]} 24. Bb6 {[%emt 0:00:18]}
Rg6 {[%emt 0:01:12]} 25. h5 {[%emt 0:00:10]} Rg5 {[%emt 0:00:31]} 26. Nd2 {
[%emt 0:04:27]} Nf6 {[%emt 0:05:22] [#] ...Bh3 is the strong threat.} 27. f3 {
[%emt 0:04:28]} Bh3 {[%emt 0:06:01] This bishop pair is nice.} 28. Kh2 {
[%emt 0:02:13]} Rxg2+ {[%emt 0:00:27] Black mates.} 29. Kxh3 {[%emt 0:00:12]}
Rg3+ {[%emt 0:00:05]} 30. Kh2 {[%emt 0:00:13]} Qe8 {[%emt 0:00:00] Weighted
Error Value: White=1.02/Black=0.06 (flawless)} 0-1

[Event "44th Chess Olympiad Women 2022"]
[Site "Chennai"]
[Date "2022.08.06"]
[Round "8.6"]
[White "Avramidou, Anastasia"]
[Black "Peycheva, Gergana"]
[Result "1/2-1/2"]
[WhiteElo "2274"]
[BlackElo "2295"]
[Annotator "NA RC"]
[PlyCount "63"]
[EventDate "2022.??.??"]
[TimeControl "60"]

1. d4 {[%emt 0:00:04]} d5 {[%emt 0:00:13]} 2. c4 {[%emt 0:00:09]} dxc4 {
[%emt 0:00:31]} 3. Nf3 {[%emt 0:00:19]} Nf6 {[%emt 0:00:54]} 4. e3 {[%emt 0:00:
00]} e6 {[%emt 0:01:07]} 5. Bxc4 {[%emt 0:00:14]} c5 {[%emt 0:01:20]} 6. O-O {
[%emt 0:01:17]} a6 {[%emt 0:00:54]} 7. Re1 {[%emt 0:02:05]} Nc6 {[%emt 0:02:05]
} 8. Nc3 {[%emt 0:00:20]} b5 {[%emt 0:01:24]} 9. Bd3 {[%emt 0:00:12]} cxd4 {
[%emt 0:00:58]} 10. exd4 {[%emt 0:01:47]} Nb4 {[%emt 0:00:43]} 11. Bb1 {
[%emt 0:07:41]} Bb7 {[%emt 0:02:27]} 12. Bg5 {[%emt 0:07:09]} Be7 {[%emt 0:00:
00]} 13. Ne5 {[%emt 0:22:42]} Nbd5 {[%emt 0:11:50]} 14. Qf3 {[%emt 0:07:15]}
Qb6 {[%emt 0:15:10]} 15. Be4 {[%emt 0:07:36]} Rd8 {[%emt 0:09:47]} 16. Bxf6 {
[%emt 0:14:36]} gxf6 {[%emt 0:09:26]} 17. Bxd5 {[%emt 0:04:28]} Bxd5 {[%emt 0:
00:00]} 18. Nxd5 {[%emt 0:00:13]} Rxd5 {[%emt 0:00:07]} 19. Ng4 {[%emt 0:10:28]
} O-O {[%emt 0:10:25]} 20. Rad1 {[%emt 0:00:00]} Rxd4 {[%emt 0:07:12]} 21.
Nxf6+ {[%emt 0:00:00]} Bxf6 {[%emt 0:02:25]} 22. Qxf6 {[%emt 0:00:00]} Rfd8 {
[%emt 0:01:54]} 23. Rc1 {[%emt 0:03:29]} Qd6 {[%emt 0:02:33]} 24. g3 {[%emt 0:
00:00]} Rg4 {[%emt 0:07:42]} 25. Qf3 {[%emt 0:00:52]} Rg5 {[%emt 0:01:08]} 26.
Red1 {[%emt 0:01:06]} Rd5 {[%emt 0:00:51]} 27. Rxd5 {[%emt 0:00:40]} Qxd5 {
[%emt 0:00:04]} 28. Qg4+ {[%emt 0:00:26]} Kf8 {[%emt 0:01:25]} 29. Qh4 {
[%emt 0:01:50]} Kg7 {[%emt 0:00:57]} 30. Qg4+ {[%emt 0:00:31]} Kf8 {[%emt 0:00:
00]} 31. Qh4 {[%emt 0:00:48]} Kg7 {[%emt 0:00:04]} 32. Qg4+ {[%emt 0:00:07]}
1/2-1/2

[Event "44th Chess Olympiad Women 2022"]
[Site "Chennai"]
[Date "2022.08.06"]
[Round "8.6"]
[White "Krasteva, Beloslava"]
[Black "Pavlidou, Ekaterini"]
[Result "1-0"]
[WhiteElo "2249"]
[BlackElo "2138"]
[Annotator "RC"]
[PlyCount "137"]
[EventDate "2022.??.??"]
[TimeControl "60"]

1. d4 {[%emt 0:00:06]} d6 {[%emt 0:00:22]} 2. Nf3 {[%emt 0:01:11]} g6 {[%emt 0:
00:00]} 3. c4 {[%emt 0:00:55]} Bg7 {[%emt 0:00:25]} 4. e4 {[%emt 0:00:55]} Nf6
{[%emt 0:00:43]} 5. Nc3 {[%emt 0:00:07]} O-O {[%emt 0:00:25]} 6. h3 {[%emt 0:
00:00]} e5 {[%emt 0:00:33]} 7. d5 {[%emt 0:00:48]} a5 {[%emt 0:00:33]} 8. Be3 {
[%emt 0:00:32]} Na6 {[%emt 0:00:47]} 9. g4 {[%emt 0:00:39]} Nd7 {[%emt 0:00:46]
} 10. a3 {[%emt 0:00:40]} Nac5 {[%emt 0:03:48]} 11. Rg1 {[%emt 0:01:01]} a4 {
[%emt 0:02:43]} 12. Nd2 {[%emt 0:01:20]} Kh8 {[%emt 0:06:43]} 13. g5 {[%emt 0:
00:00]} f5 {[%emt 0:06:44]} 14. h4 {[%emt 0:01:23]} f4 {[%emt 0:07:01]} 15.
Bxc5 {[%emt 0:00:58]} Nxc5 {[%emt 0:00:33]} 16. Qf3 {[%emt 0:03:12]} c6 {
[%emt 0:09:18]} 17. Rh1 {[%emt 0:10:26]} Kg8 {[%emt 0:02:35]} 18. Bh3 {[%emt 0:
00:00]} Bd7 {[%emt 0:04:16]} 19. Bxd7 {[%emt 0:05:35]} Qxd7 {[%emt 0:01:17]}
20. Ke2 {[%emt 0:07:31]} Ra6 {[%emt 0:09:35]} 21. Rab1 {[%emt 0:05:23]} Rb6 {
[%emt 0:04:56]} 22. Rhc1 {[%emt 0:01:25]} Nb3 {[%emt 0:08:48]} 23. Nxb3 {
[%emt 0:00:21]} Rxb3 {[%emt 0:00:04]} 24. Rd1 {[%emt 0:06:25]} Rc8 {[%emt 0:00:
00]} 25. Rd3 {[%emt 0:02:52]} b5 {[%emt 0:05:31]} 26. dxc6 {[%emt 0:04:52]}
Qxc6 {[%emt 0:00:09]} 27. cxb5 {[%emt 0:01:46]} Qc4 {[%emt 0:01:12]} 28. Ke1 {
[%emt 0:03:52]} d5 {[%emt 0:03:36]} 29. Rxd5 {[%emt 0:03:11]} Bf8 {[%emt 0:00:
00]} 30. Qd3 {[%emt 0:04:28]} Qxd3 {[%emt 0:02:53]} 31. Rxd3 {[%emt 0:00:05]}
Bc5 {[%emt 0:01:15]} 32. Rbd1 {[%emt 0:10:14]} Bd4 {[%emt 0:04:19]} 33. Nxa4 {
[%emt 0:01:11]} Rxb5 {[%emt 0:00:24]} 34. R1d2 {[%emt 0:01:52]} Rc4 {[%emt 0:
00:00]} 35. Nc3 {[%emt 0:00:35]} Rb3 {[%emt 0:00:21]} 36. Nd1 {[%emt 0:01:51]}
Rb7 {[%emt 0:00:56]} 37. Ke2 {[%emt 0:01:09]} h6 {[%emt 0:02:55]} 38. Nc3 {
[%emt 0:01:12]} hxg5 {[%emt 0:00:49]} 39. hxg5 {[%emt 0:00:03]} Rh7 {[%emt 0:
00:00]} 40. Nb5 {[%emt 0:01:04]} Bb6 {[%emt 0:00:48]} 41. Nd6 {[%emt 0:05:02]}
Rc1 {[%emt 0:02:37]} 42. Rb3 {[%emt 0:02:07]} Rc6 {[%emt 0:05:08]} 43. Ne8 {
[%emt 0:06:35]} Rh1 {[%emt 0:09:10]} 44. Nf6+ {[%emt 0:00:44]} Kg7 {[%emt 0:00:
00]} 45. Nd7 {[%emt 0:11:48]} f3+ {[%emt 0:01:28]} 46. Rxf3 {[%emt 0:00:26]}
Bd4 {[%emt 0:00:05]} 47. Nf6 {[%emt 0:03:04]} Rb6 {[%emt 0:02:30]} 48. Rfd3 {
[%emt 0:01:13]} Rb1 {[%emt 0:00:51]} 49. b4 {[%emt 0:00:25]} Rc6 {[%emt 0:00:
00]} 50. Nd5 {[%emt 0:00:49]} Rg1 {[%emt 0:02:02]} 51. b5 {[%emt 0:02:01]} Rc8
{[%emt 0:02:18]} 52. Rb3 {[%emt 0:00:47]} Rf8 {[%emt 0:04:29]} 53. Ne3 {
[%emt 0:00:21]} Rb8 {[%emt 0:01:20]} 54. Rc2 {[%emt 0:01:21]} Rxg5 {[%emt 0:00:
00]} 55. a4 {[%emt 0:00:52]} Rh5 {[%emt 0:01:15]} 56. Rc6 {[%emt 0:00:45]} Rh1
{[%emt 0:03:26]} 57. b6 {[%emt 0:00:31]} Ra1 {[%emt 0:00:35]} 58. Rb4 {[%emt 0:
00:00]} Ra2+ {[%emt 0:00:26]} 59. Rc2 {[%emt 0:00:30]} Ra3 {[%emt 0:00:43]} 60.
b7 {[%emt 0:00:30]} Ba7 {[%emt 0:00:32]} 61. Rc8 {[%emt 0:00:24]} Ra2+ {
[%emt 0:00:11]} 62. Kf3 {[%emt 0:00:32]} Rd2 {[%emt 0:00:04]} 63. Rxb8 {
[%emt 0:00:12]} Bxb8 {[%emt 0:00:04]} 64. Nd5 {[%emt 0:00:25]} Rc2 {[%emt 0:00:
00]} 65. a5 {[%emt 0:00:31]} Rc5 {[%emt 0:00:32]} 66. a6 {[%emt 0:00:13]} Ra5 {
[%emt 0:00:41]} 67. Rb6 {[%emt 0:00:17]} Kf7 {[%emt 0:00:43]} 68. Nb4 {[%emt 0:
00:00]} Ra3+ {[%emt 0:00:41]} 69. Kg4 {[%emt 0:00:29]} 1-0

[Event "44th Chess Olympiad Women 2022"]
[Site "Chennai"]
[Date "2022.08.06"]
[Round "8.6"]
[White "Makka, Ioulia"]
[Black "Antova, Gabriela"]
[Result "0-1"]
[WhiteElo "1975"]
[BlackElo "2275"]
[Annotator "NA RC"]
[PlyCount "72"]
[EventDate "2022.??.??"]
[TimeControl "60"]

1. e4 {[%emt 0:00:03]} e5 {[%emt 0:00:16]} 2. Nf3 {[%emt 0:00:24]} Nc6 {
[%emt 0:00:22]} 3. Bb5 {[%emt 0:00:20]} a6 {[%emt 0:00:08]} 4. Ba4 {[%emt 0:00:
00]} d6 {[%emt 0:00:11]} 5. c3 {[%emt 0:12:52]} Bd7 {[%emt 0:00:19]} 6. d4 {
[%emt 0:06:16]} g6 {[%emt 0:00:33]} 7. d5 {[%emt 0:03:31]} Nce7 {[%emt 0:00:12]
} 8. Bxd7+ {[%emt 0:00:51]} Qxd7 {[%emt 0:00:08]} 9. c4 {[%emt 0:01:17]} Bg7 {
[%emt 0:00:18]} 10. Nc3 {[%emt 0:01:06]} h6 {[%emt 0:00:17]} 11. b3 {[%emt 0:
00:00]} f5 {[%emt 0:06:54]} 12. Bb2 {[%emt 0:04:32]} Nf6 {[%emt 0:04:27]} 13.
Nd2 {[%emt 0:10:36]} O-O {[%emt 0:02:08]} 14. O-O {[%emt 0:16:27]} Rf7 {
[%emt 0:21:38]} 15. f3 {[%emt 0:05:16]} h5 {[%emt 0:05:51]} 16. b4 {[%emt 0:00:
00]} Bh6 {[%emt 0:08:51]} 17. Qe2 {[%emt 0:00:43]} Raf8 {[%emt 0:04:10]} 18.
Nb3 {[%emt 0:02:21]} f4 {[%emt 0:07:08]} 19. c5 {[%emt 0:00:54]} g5 {[%emt 0:
00:00]} 20. cxd6 {[%emt 0:01:20]} cxd6 {[%emt 0:00:05]} 21. b5 {[%emt 0:02:46]}
g4 {[%emt 0:05:55]} 22. bxa6 {[%emt 0:00:21]} bxa6 {[%emt 0:00:04]} 23. Qxa6 {
[%emt 0:02:05]} Rg7 {[%emt 0:01:33]} 24. Kh1 {[%emt 0:01:28]} h4 {[%emt 0:00:
00]} 25. Qe2 {[%emt 0:04:32]} h3 {[%emt 0:03:38]} 26. fxg4 {[%emt 0:01:27]}
hxg2+ {[%emt 0:00:39]} 27. Qxg2 {[%emt 0:00:07]} Nxg4 {[%emt 0:00:53]} 28. Qf3
{[%emt 0:02:48]} Ng6 {[%emt 0:00:54]} 29. Qd3 {[%emt 0:03:41]} Nh4 {[%emt 0:00:
00]} 30. Qb5 {[%emt 0:00:53]} Qa7 {[%emt 0:05:18]} 31. Nd1 {[%emt 0:00:38]} f3
{[%emt 0:02:40]} 32. Qc6 {[%emt 0:02:21]} Nxh2 {[%emt 0:06:32]} 33. Kxh2 {
[%emt 0:01:11]} Bf4+ {[%emt 0:00:12]} 34. Kh1 {[%emt 0:00:44]} Nf5 {[%emt 0:00:
00]} 35. Rf2 {[%emt 0:00:38]} Qe7 {[%emt 0:01:55]} 36. Qc2 {[%emt 0:00:19]}
Qh4+ {[%emt 0:00:06]} 0-1

[Event "44th Chess Olympiad Women 2022"]
[Site "Chennai"]
[Date "2022.08.06"]
[Round "8.6"]
[White "Salimova, Nurgyul"]
[Black "Tsolakidou, Stavroula"]
[Result "1/2-1/2"]
[WhiteElo "2416"]
[BlackElo "2362"]
[Annotator "TA"]
[PlyCount "144"]
[EventDate "2022.??.??"]
[TimeControl "60"]

{[%evp 14,144,12,12,5,12,4,15,10,4,6,-8,0,-6,0,-8,-6,-7,0,-12,0,0,0,-44,-6,-11,
4,-15,0,0,0,-22,19,-2,25,4,0,13,12,0,5,-15,-7,-16,-20,-14,0,-11,0,0,13,-28,17,
-20,-33,-44,-27,-35,-16,-25,-21,-35,0,0,0,0,0,0,0,0,0,-23,0,-21,-10,-8,-8,-8,
-8,-38,-43,-133,-130,-125,-120,-118,-124,-122,-85,-85,-85,-85,-74,-74,-74,-74,
-74,-74,-74,-74,-74,-74,-74,-74,-74,-74,-48,-74,-47,-50,-50,-50,-50,-50,-48,
-48,-47,-47,-47,-47,-47,-47,-47,-47,-21,-21,-21,-21,-21,-21,-21,-21,-21]} 1. d4
{[%emt 0:00:03]} Nf6 {[%emt 0:00:06]} 2. c4 {[%emt 0:00:06]} e6 {[%emt 0:00:07]
} 3. Nf3 {[%emt 0:00:04]} d5 {[%emt 0:00:13]} 4. g3 {[%emt 0:00:29]} Bb4+ {
[%emt 0:00:37]} 5. Bd2 {[%emt 0:00:18]} Be7 {[%emt 0:00:21]} 6. Bg2 {[%emt 0:
00:00]} O-O {[%emt 0:00:15]} 7. O-O {[%emt 0:00:31]} c6 {[%emt 0:00:26]} 8. Bf4
{[%emt 0:00:58]} dxc4 {[%emt 0:07:20] E11: Bogo-Indian.} 9. Ne5 {[%emt 0:00:28]
} Nd5 {[%emt 0:00:42]} 10. Nxc4 {[%emt 0:00:16]} Nxf4 {[%emt 0:00:57]} 11. gxf4
{[%emt 0:00:06]} Nd7 {[%emt 0:00:06][%cal Yb8d7,Yd7b6,Yb6d5]} 12. Nc3 {[%emt 0:
05:45]} Nb6 {[%emt 0:03:56]} 13. Ne5 {[%emt 0:03:31]} f6 {[%emt 0:00:00]} 14.
Nf3 {[%emt 0:01:30]} Bd7 {[%emt 0:03:01]} 15. e3 {[%emt 0:01:36]} Nd5 {[%emt 0:
10:06]} 16. Ne4 {[%emt 0:07:54]} b6 {[%emt 0:02:06]} 17. Rc1 {[%emt 0:00:00]}
Rc8 {[%emt 0:00:40] [#]} 18. Kh1 $146 {[%emt 0:03:47]} ({Predecessor:} 18. Ng3
Qe8 19. Qb3 Kh8 20. a3 Qf7 21. Rfd1 Rfd8 22. Qd3 Qe8 23. Qe4 g6 24. Qb1 {
½-½ (42) Schulz,R (2406)-Kregelin,J (2325) GER email 2016}) 18... Kh8 {
[%emt 0:02:48]} 19. Rg1 {[%emt 0:08:22]} Be8 {[%emt 0:09:27]} 20. Bh3 {[%emt 0:
00:00]} Nc7 {[%emt 0:01:15]} 21. Ng3 {[%emt 0:11:12]} g6 {[%emt 0:12:00]} 22.
a3 {[%emt 0:03:32]} Qd6 {[%emt 0:04:48]} 23. Qe2 {[%emt 0:08:14]} Bf7 {[%emt 0:
00:00]} 24. Bg2 {[%emt 0:01:44]} Nd5 {[%emt 0:01:20]} 25. Rc2 {[%emt 0:03:10]}
Qd7 {[%emt 0:02:33]} 26. Ne4 {[%emt 0:01:33]} Rc7 {[%emt 0:02:33]} 27. b4 {
[%emt 0:02:12]} Ra8 {[%emt 0:03:53]} 28. Qa6 $1 {[%emt 0:10:41]} Be8 {[%emt 0:
00:00][%cal Yf7e8,Ye8d7,Yd7c8,Yc8b7]} 29. Rgc1 {[%emt 0:02:06]} Qd8 {[%emt 0:
00:20]} 30. Nfd2 {[%emt 0:03:32]} Bd7 {[%emt 0:01:01]} 31. Nc3 {[%emt 0:05:50]}
Bc8 {[%emt 0:03:48]} 32. Qd3 {[%emt 0:04:03]} (32. Qc4 $5 {[%cal Rc3d5]}) 32...
Bb7 {[%emt 0:00:32]} (32... a5 $5 {[%cal Ra5b4]}) 33. Nxd5 {[%emt 0:00:37]}
exd5 {[%emt 0:00:04]} 34. Qb3 {[%emt 0:00:59][%cal Yg2d5]} Rac8 {[%emt 0:09:45]
} 35. Kg1 {[%emt 0:01:36]} Qd7 {[%emt 0:00:37]} 36. a4 {[%emt 0:00:52]} Kg7 {
[%emt 0:02:08]} 37. Nf1 {[%emt 0:02:23]} c5 {[%emt 0:00:00]} 38. bxc5 {[%emt 0:
00:19]} bxc5 {[%emt 0:00:04]} 39. dxc5 {[%emt 0:00:15]} Rxc5 {[%emt 0:00:14]}
40. Rxc5 {[%emt 0:00:24]} Rxc5 {[%emt 0:00:15]} 41. Rxc5 {[%emt 0:31:12]} Bxc5
{[%emt 0:30:04]} 42. Ng3 {[%emt 0:01:02]} Bb6 {[%emt 0:00:00]} (42... Bc6 $5 {
[%cal Rc6a4]}) 43. Ne2 {[%emt 0:00:00]} Bc6 {[%emt 0:00:00]} 44. a5 {[%emt 0:
00:00]} Bxa5 {[%emt 0:00:00] With the idea ...Bb5.} 45. Nd4 {[%emt 0:00:00]
Inhibits Bb5.} Ba4 {[%emt 0:00:00]} 46. Qa2 {[%emt 0:00:00]} Bb6 {[%emt 0:00:
00] This bishop pair is nice.} 47. Ne6+ {[%emt 0:00:00]} Qxe6 $17 {[%emt 0:00:
00]} 48. Qxa4 {[%emt 0:00:00] Endgame KQB-KQB} Qd6 {[%emt 0:00:00]} 49. f5 {
[%emt 0:00:00]} d4 {[%emt 0:04:07]} 50. exd4 {[%emt 0:00:00]} Bxd4 {[%emt 0:00:
05]} 51. fxg6 {[%emt 0:00:00]} hxg6 {[%emt 0:00:03]} 52. Qc6 {[%emt 0:01:47]}
Qf4 {[%emt 0:04:11]} 53. Qd7+ {[%emt 0:01:03]} Kh6 {[%emt 0:00:24]} 54. Qh3+ {
[%emt 0:00:27] [#]} Kg5 $1 {[%emt 0:00:34]} 55. Qg3+ {[%emt 0:02:00]} Qxg3 {
[%emt 0:00:20]} 56. hxg3 {[%emt 0:00:04] KB-KB} a5 {[%emt 0:00:04]} 57. Bc6 {
[%emt 0:00:16]} Kf5 {[%emt 0:00:20]} 58. Kf1 {[%emt 0:00:00]} g5 {[%emt 0:00:
14]} 59. Ke2 {[%emt 0:00:48]} Be5 {[%emt 0:02:25]} 60. Ke3 {[%emt 0:02:14]} Bc7
{[%emt 0:00:17]} 61. Bd7+ {[%emt 0:00:23]} Ke5 {[%emt 0:00:17]} 62. Kd3 {
[%emt 0:01:15]} Kd6 {[%emt 0:00:32]} 63. Be8 {[%emt 0:00:00]} Kc5 {[%emt 0:00:
21]} 64. Kc3 $1 {[%emt 0:01:03]} Be5+ {[%emt 0:00:19]} 65. Kb3 {[%emt 0:01:28]}
g4 {[%emt 0:00:19]} 66. Bh5 {[%emt 0:00:26]} Bd4 {[%emt 0:00:20]} 67. f3 {
[%emt 0:00:27]} gxf3 {[%emt 0:00:28]} 68. Bxf3 {[%emt 0:00:03]} f5 {[%emt 0:00:
13]} 69. Ka4 {[%emt 0:00:38] The position is equal.} Bc3 {[%emt 0:00:12]} 70.
Bb7 {[%emt 0:01:04]} Kd4 {[%emt 0:00:23]} 71. Bc8 {[%emt 0:00:14]} Ke5 {
[%emt 0:00:42]} 72. Bd7 {[%emt 0:00:17]} Kf6 {[%emt 0:00:16] Weighted Error
Value: White=0.09 (flawless) /Black=0.08 (flawless)} 1/2-1/2

[Event "44th Chess Olympiad Women 2022"]
[Site "Chennai"]
[Date "2022.08.06"]
[Round "8.7"]
[White "Enkhtuul, Altan-Ulzii"]
[Black "Hoang, Thanh Trang"]
[Result "1/2-1/2"]
[WhiteElo "2267"]
[BlackElo "2376"]
[Annotator "TA"]
[PlyCount "48"]
[EventDate "2022.??.??"]
[TimeControl "60"]

{[%evp 9,48,22,25,11,18,6,13,0,0,-16,-8,-16,-8,-14,-8,-8,40,4,6,-37,-29,-43,
-35,-44,95,61,92,104,81,0,29,0,0,0,42,0,14,0,34,0,0]} 1. d4 {[%emt 0:00:03]} e6
{[%emt 0:00:26]} 2. c4 {[%emt 0:00:06]} f5 {[%emt 0:00:17]} 3. a3 {[%emt 0:00:
00]} Nf6 {[%emt 0:01:01]} 4. Nc3 {[%emt 0:00:06]} g6 {[%emt 0:02:14]} 5. Nf3 {
[%emt 0:00:59]} Bg7 {[%emt 0:00:27]} 6. Bg5 {[%emt 0:05:13] A85: Dutch Defence:
2 c4 Nf6 3 Nc3.} h6 {[%emt 0:15:10]} 7. Bxf6 {[%emt 0:05:21]} Qxf6 {[%emt 0:00:
00] [#]} 8. e4 $146 {[%emt 0:05:50]} ({Predecessor:} 8. e3 c6 9. c5 O-O 10. Bc4
Kh7 11. Ne2 b5 12. Bd3 a5 13. b4 a4 14. Ne5 {½-½ (36) Turchenko,A (1864)
-Geru,V (1934) Kishinev 2007}) 8... d6 {[%emt 0:01:48]} 9. Bd3 {[%emt 0:03:32]}
O-O {[%emt 0:02:16]} 10. O-O {[%emt 0:03:08]} Nc6 {[%emt 0:05:16]} 11. d5 {
[%emt 0:09:26]} Ne5 {[%emt 0:01:57]} 12. Nxe5 {[%emt 0:00:33]} dxe5 {[%emt 0:
00:00]} (12... Qxe5 $11 13. exf5 exf5) 13. c5 {[%emt 0:13:07]} exd5 {[%emt 0:
00:00]} 14. exd5 {[%emt 0:04:33]} e4 {[%emt 0:02:43]} 15. Bc4 {[%emt 0:00:15]}
Kh7 {[%emt 0:01:33]} 16. Rc1 {[%emt 0:18:09][%cal Ya1c1,Yc1b1,Yb1b3]} f4 {
[%emt 0:11:14]} (16... Bd7 $15 {keeps the upper hand.}) 17. Nxe4 $16 {[%emt 0:
01:10]} Qxb2 {[%emt 0:00:14]} 18. Rb1 {[%emt 0:04:59]} Qxa3 {[%emt 0:00:00] [#]
} 19. d6 {[%emt 0:06:08]} (19. Re1 $1 $16) 19... Bf5 {[%emt 0:06:58] A strong
pair of Bishops.} 20. Rb3 {[%emt 0:00:56] White has compensation.} ({Of course
not} 20. Rxb7 Bxe4 21. Rxc7 Qc3 $15) 20... Qa5 {[%emt 0:06:26]} 21. Rb5 {
[%emt 0:00:06]} Qa3 {[%emt 0:01:15]} (21... Qa6 $5 {[%cal Rf5e4]} 22. Re1 c6
$11) 22. Rb3 {[%emt 0:00:28]} Qa5 {[%emt 0:03:02]} 23. Rb5 {[%emt 0:00:11]} Qa3
{[%emt 0:01:07]} 24. Rb3 {[%emt 0:00:19]} Qa5 $1 {[%emt 0:00:40] Weighted
Error Value: White=0.17 (very precise) /Black=0.17 (very precise)} 1/2-1/2